bitfinex/quotes_BTCUSD_20220226
["timestamp","ask_amount","ask_price","bid_price","bid_amount"]
[1645879791904,0.0427872,38921.0,38914.0,0.00029655]
[1645879792152,0.03578266,38921.0,38913.0,0.0005487]
[1645879792352,0.377774,38920.0,38914.0,0.00029655]
[1645879793358,0.03478266,38921.0,38913.0,0.0005487]
[1645879793553,0.3,38920.0,38914.0,0.00029655]
[1645879793754,0.301,38920.0,38914.0,0.00029655]
[1645879794156,0.377774,38919.0,38914.0,0.00029655]
[1645879794555,0.377774,38919.0,38913.0,0.0005487]
[1645879794855,0.377774,38919.0,38914.0,0.00029655]
[1645879795905,0.377774,38919.0,38913.0,0.0005487]
[1645879796099,0.377774,38919.0,38914.0,0.00029655]
[1645879797101,0.377774,38919.0,38913.0,0.0005487]
[1645879797302,0.377774,38919.0,38914.0,0.00029655]
[1645879797702,0.378774,38919.0,38914.0,0.00029655]
[1645879797904,0.001,38919.0,38914.0,0.00029655]
[1645879798103,0.377774,38918.0,38914.0,0.00029655]
[1645879798303,0.377774,38918.0,38913.0,0.0005487]
[1645879798508,0.377774,38917.0,38914.0,0.00029655]
[1645879799006,0.478574,38922.0,38917.0,0.17403794]
[1645879799207,0.377774,38921.0,38917.0,0.17403794]
[1645879800054,0.377774,38919.0,38914.0,0.00029656]
[1645879800250,0.3,38920.0,38914.0,0.00029656]
[1645879800455,0.301,38922.0,38914.0,0.00029656]
[1645879800653,0.301,38922.0,38913.0,0.0005487]
[1645879800654,0.001,38922.0,38913.0,0.0005487]
[1645879800850,0.001,38922.0,38914.0,0.00029655]
[1645879801055,0.4,38924.0,38914.0,0.00029655]
[1645879801355,0.37996551,38920.0,38914.0,0.00029655]
[1645879801551,0.32568472,38918.0,38915.0,0.13491794]
[1645879801750,0.377774,38917.0,38915.0,0.13491794]
[1645879801951,0.32568472,38918.0,38915.0,0.13491794]
[1645879802351,0.32568472,38917.0,38915.0,0.13491794]
[1645879802951,0.32568472,38917.0,38913.0,0.0005487]
[1645879803151,0.01349179,38914.0,38913.0,0.0005487]
[1645879803806,0.01549179,38914.0,38913.0,0.0005487]
[1645879804021,0.01549179,38914.0,38913.0,0.13038981]
[1645879805009,0.01349179,38914.0,38913.0,0.13038981]
[1645879805412,0.01349179,38914.0,38913.0,0.0005487]
[1645879805810,0.01549179,38914.0,38913.0,0.0005487]
[1645879806912,0.01349179,38914.0,38913.0,0.0005487]
[1645879807749,0.01449179,38914.0,38913.0,0.0005487]
[1645879809051,0.33917651,38914.0,38913.0,0.0005487]
[1645879809854,0.34117651,38914.0,38913.0,0.0005487]
[1645879810666,0.01549179,38914.0,38913.0,0.3783227]
[1645879810913,0.01549179,38914.0,38913.0,0.5047527]
[1645879811111,0.01349179,38914.0,38913.0,0.5047527]
[1645879811514,0.01278186,38914.0,38913.0,0.5047527]
[1645879811714,1.86e-06,38914.0,38913.0,0.5057527]
[1645879812210,1.86e-06,38914.0,38913.0,0.5571527]
[1645879812612,1.86e-06,38914.0,38913.0,0.5307227]
[1645879813011,1.86e-06,38914.0,38913.0,0.5297227]
[1645879813514,1.86e-06,38914.0,38913.0,0.70681446]
[1645879813713,1.86e-06,38914.0,38913.0,0.70781446]
[1645879814116,1.86e-06,38914.0,38913.0,0.5307227]
[1645879814563,1.02e-06,38919.0,38914.0,0.02567]
[1645879814761,0.015,38927.0,38919.0,0.403381]
[1645879814762,0.32568472,38924.0,38919.0,0.403381]
[1645879814960,0.32568472,38925.0,38922.0,0.089018]
[1645879815157,0.32568472,38926.0,38922.0,0.166608]
[1645879815357,0.015,38927.0,38922.0,0.166608]
[1645879815358,0.32568472,38925.0,38922.0,0.166608]
[1645879815557,0.32568472,38926.0,38923.0,0.16460712]
[1645879815758,0.32568472,38926.0,38924.0,0.377658]
[1645879815959,0.34068472,38927.0,38924.0,0.377658]
[1645879816158,0.32568472,38926.0,38924.0,0.377658]
[1645879816761,0.32568472,38925.0,38924.0,0.377658]
[1645879816958,0.37996551,38926.0,38924.0,0.377658]
[1645879817557,0.37996551,38926.0,38920.0,0.377774]
[1645879817759,0.32559218,38923.0,38920.0,0.377774]
[1645879818158,0.32559218,38924.0,38920.0,0.377774]
[1645879820605,0.32559218,38925.0,38920.0,0.377774]
[1645879821607,0.3,38924.0,38919.0,0.1]
[1645879821810,0.3,38924.0,38920.0,0.001]
[1645879821811,0.32559218,38923.0,38920.0,0.001]
[1645879822066,0.70336618,38921.0,38920.0,0.001]
[1645879822256,1.00333197,38921.0,38920.0,0.001]
[1645879822460,0.32555797,38921.0,38920.0,0.001]
[1645879822656,0.67996551,38923.0,38920.0,0.001]
[1645879822856,0.67996551,38922.0,38920.0,0.001]
[1645879823056,0.67996551,38922.0,38914.0,0.00027505]
[1645879823057,0.0002044,38916.0,38914.0,0.00027505]
[1645879823560,0.0002044,38916.0,38914.0,0.377774]
[1645879823758,0.0002044,38916.0,38914.0,0.378774]
[1645879824257,0.0002044,38916.0,38915.0,0.189029]
[1645879825057,0.0002044,38916.0,38915.0,0.089029]
[1645879825257,0.0002044,38916.0,38915.0,0.189029]
[1645879825904,0.0002044,38916.0,38915.0,0.190029]
[1645879826104,0.0002044,38916.0,38915.0,0.215699]
[1645879827006,4.4e-06,38916.0,38915.0,0.531729]
[1645879827210,4.4e-06,38916.0,38915.0,0.633129]
[1645879827404,4.4e-06,38916.0,38915.0,0.662559]
[1645879827804,4.4e-06,38916.0,38915.0,0.99480949]
[1645879828003,4.4e-06,38916.0,38915.0,0.99480272]
[1645879828208,4.4e-06,38916.0,38915.0,0.98085959]
[1645879828505,4.4e-06,38916.0,38915.0,0.99111959]
[1645879829109,4.4e-06,38916.0,38915.0,1.27925242]
[1645879829310,4.4e-06,38916.0,38915.0,1.92175242]
[1645879829558,0.32557381,38931.0,38927.0,0.06423]
[1645879829764,0.015,38938.0,38927.0,0.06423]
[1645879829765,0.32557381,38936.0,38931.0,0.3776]
[1645879830056,0.015,38938.0,38931.0,0.3776]
[1645879830057,0.32557381,38937.0,38931.0,0.3776]
[1645879830255,0.32557381,38937.0,38935.0,0.1468455]
[1645879830458,0.32557381,38937.0,38936.0,0.088959]
[1645879831458,0.34057381,38938.0,38936.0,0.088959]
[1645879831856,0.002,38937.0,38936.0,0.088959]
[1645879832659,0.002,38937.0,38932.0,0.377774]
[1645879832958,0.32757381,38937.0,38932.0,0.377774]
[1645879833159,0.32557381,38937.0,38932.0,0.377774]
[1645879833400,0.34057381,38938.0,38932.0,0.377774]
[1645879834000,0.015,38938.0,38932.0,0.377774]
[1645879834401,0.34057381,38938.0,38932.0,0.377774]
[1645879835602,0.015,38938.0,38932.0,0.377774]
[1645879836703,0.32557381,38941.0,38932.0,0.377774]
[1645879837175,0.00027507,38942.0,38927.0,0.01226]
[1645879837176,0.3507699,38939.0,38927.0,0.01226]
[1645879837374,0.32567,38938.0,38927.0,0.004]
[1645879837971,0.32567,38938.0,38926.0,0.2243]
[1645879838172,0.02567,38938.0,38926.0,0.38208372]
[1645879838373,0.02567,38939.0,38926.0,0.38208372]
[1645879838972,0.02567,38939.0,38926.0,0.38408372]
[1645879840273,0.02567,38939.0,38926.0,0.38208372]
[1645879840475,0.02567,38939.0,38926.0,0.28208372]
[1645879840904,0.02567,38939.0,38926.0,0.28608372]
[1645879841504,0.02567,38939.0,38927.0,0.377774]
[1645879842907,0.27325174,38940.0,38927.0,0.380774]
[1645879844309,0.27325174,38940.0,38927.0,0.377774]
[1645879844952,0.27325174,38940.0,38927.0,0.380774]
[1645879846253,0.27325174,38940.0,38932.0,0.13794189]
[1645879846456,0.008971,38942.0,38933.0,0.088826]
[1645879846457,0.30924738,38942.0,38933.0,0.088826]
[1645879846655,0.00110554,38941.0,38935.0,0.377696]
[1645879847255,0.00110554,38941.0,38939.0,0.14275503]
[1645879847455,1.0066,38943.0,38940.0,0.088806]
[1645879847858,0.0002764,38942.0,38939.0,0.14275503]
[1645879848055,0.0002764,38942.0,38940.0,0.35812342]
[1645879848708,1.0066,38943.0,38940.0,0.35812342]
[1645879848912,1.0066,38943.0,38940.0,0.377712]
[1645879849110,1.0068764,38943.0,38940.0,0.377712]
[1645879849910,1.0066,38943.0,38940.0,0.377712]
[1645879850210,1.0068764,38943.0,38940.0,0.377712]
[1645879851010,1.0068764,38943.0,38940.0,0.380712]
[1645879851209,1.0066,38943.0,38940.0,0.380712]
[1645879851409,1.0068764,38943.0,38940.0,0.380712]
[1645879851809,0.91535446,38943.0,38940.0,0.380712]
[1645879852056,0.91457767,38943.0,38941.0,6.975e-05]
[1645879852258,0.3741,38949.0,38942.0,0.069092]
[1645879852460,1.0066,38950.0,38942.0,0.069092]
[1645879852659,0.0002764,38944.0,38942.0,0.069092]
[1645879853062,0.0002764,38944.0,38942.0,0.071092]
[1645879853659,0.015,38952.0,38949.0,0.14779949]
[1645879853861,0.00110541,38951.0,38950.0,0.377611]
[1645879854261,0.00110541,38951.0,38943.0,0.1157]
[1645879854461,0.00110541,38951.0,38944.0,0.377712]
[1645879854862,0.015,38952.0,38943.0,0.1157]
[1645879855062,0.00027638,38949.0,38944.0,0.377712]
[1645879855262,0.00027638,38949.0,38948.0,0.17635798]
[1645879855463,0.00027638,38949.0,38948.0,0.24538898]
[1645879855902,0.015,38952.0,38948.0,0.24538898]
[1645879856102,0.015,38952.0,38949.0,0.377662]
[1645879856302,0.015,38952.0,38944.0,0.377712]
[1645879857104,0.015,38952.0,38944.0,0.33234941]
[1645879858908,0.015,38952.0,38944.0,0.377696]
[1645879859107,0.015,38952.0,38943.0,6.956e-05]
[1645879859308,0.7993,38952.0,38943.0,6.956e-05]
[1645879859552,0.3,38951.0,38943.0,6.956e-05]
[1645879859755,0.00029875,38949.0,38943.0,6.956e-05]
[1645879860862,0.27084047,38945.0,38939.0,0.377696]
[1645879861156,0.21667259,38942.0,38939.0,0.377696]
[1645879861554,0.21632846,38942.0,38939.0,0.377696]
[1645879861958,0.43299779,38942.0,38939.0,0.377696]
[1645879862156,0.43329656,38942.0,38939.0,0.377696]
[1645879862457,0.69662724,38942.0,38939.0,0.377696]
[1645879863157,0.69632847,38942.0,38939.0,0.379696]
[1645879863427,0.69660549,38942.0,38939.0,0.379696]
[1645879864323,0.69632847,38942.0,38939.0,0.377696]
[1645879864722,0.69660549,38942.0,38939.0,0.377696]
[1645879864923,0.69660549,38942.0,38939.0,0.378696]
[1645879865626,0.69632847,38942.0,38939.0,0.378696]
[1645879865827,0.69660549,38942.0,38939.0,0.378696]
[1645879866428,0.69660549,38942.0,38939.0,0.427696]
[1645879866628,0.69660549,38942.0,38941.0,0.023755]
[1645879866829,0.54632847,38942.0,38941.0,0.141085]
[1645879867065,0.54660674,38942.0,38941.0,0.40529396]
[1645879868067,0.54632847,38942.0,38941.0,0.40529396]
[1645879868669,0.54632847,38942.0,38941.0,0.341085]
[1645879868864,0.54632847,38942.0,38941.0,0.241085]
[1645879872805,0.54632847,38942.0,38941.0,0.141085]
[1645879873008,0.54632847,38942.0,38941.0,0.075155]
[1645879874107,0.54632847,38942.0,38941.0,0.125155]
[1645879874552,0.54632847,38942.0,38941.0,0.175155]
[1645879874953,8.47e-06,38942.0,38941.0,0.202825]
[1645879875155,0.27084025,38951.0,38945.0,0.377637]
[1645879875156,0.21666933,38951.0,38945.0,0.377637]
[1645879875356,0.21666933,38952.0,38947.0,0.023741]
[1645879875552,0.21666933,38952.0,38948.0,0.429006]
[1645879875553,0.00111274,38949.0,38948.0,0.429006]
[1645879875952,0.00111274,38949.0,38948.0,0.70393515]
[1645879876354,0.21666933,38951.0,38948.0,0.70393515]
[1645879876755,0.00027821,38950.0,38948.0,0.70393515]
[1645879877557,0.21666933,38951.0,38948.0,0.529006]
[1645879877757,0.21666933,38951.0,38948.0,0.429006]
[1645879877955,0.21694753,38951.0,38948.0,0.429006]
[1645879878413,0.21666933,38949.0,38948.0,0.429006]
[1645879878612,0.27084025,38950.0,38948.0,0.429006]
[1645879878812,0.21671839,38949.0,38948.0,0.429006]
[1645879880016,1.38687666,38956.0,38948.0,0.529006]
[1645879880017,0.21671839,38952.0,38948.0,0.529006]
[1645879880215,0.21671839,38953.0,38948.0,0.529006]
[1645879880415,0.0001714,38950.0,38948.0,0.529006]
[1645879881116,0.0001714,38950.0,38949.0,0.15133681]
[1645879881315,0.21671839,38953.0,38950.0,0.377585]
[1645879881516,0.0001714,38951.0,38950.0,0.2107745]
[1645879882362,0.21671839,38953.0,38950.0,0.2107745]
[1645879882661,0.00029903,38952.0,38950.0,0.2107745]
[1645879883562,0.21671839,38953.0,38950.0,0.2107745]
[1645879883965,0.21671839,38952.0,38950.0,0.2107745]
[1645879885065,0.21671839,38952.0,38950.0,0.2127745]
[1645879885907,0.21701742,38953.0,38950.0,0.2127745]
[1645879886107,0.21701742,38953.0,38951.0,0.3]
[1645879886108,0.21671839,38953.0,38951.0,0.3]
[1645879886308,0.21701742,38953.0,38952.0,0.023735]
[1645879887110,0.21637444,38953.0,38952.0,0.023735]
[1645879887410,0.21607541,38953.0,38952.0,0.023735]
[1645879887613,0.00029902,38954.0,38952.0,0.023735]
[1645879887912,0.27113927,38954.0,38952.0,0.023735]
[1645879888112,0.27084025,38953.0,38952.0,0.023735]
[1645879888312,0.00029902,38954.0,38952.0,0.023735]
[1645879888512,0.27113927,38954.0,38952.0,0.023735]
[1645879888712,0.27084025,38954.0,38952.0,0.023735]
[1645879889113,0.00029902,38955.0,38952.0,0.023735]
[1645879889672,0.0011,38956.0,38954.0,0.159358]
[1645879889871,0.0001714,38955.0,38954.0,0.159358]
[1645879890671,0.0001714,38955.0,38954.0,0.459358]
[1645879890882,0.0011,38956.0,38954.0,0.159358]
[1645879891078,0.0011,38956.0,38955.0,0.0514]
[1645879891273,0.0011,38956.0,38955.0,0.075129]
[1645879891274,0.00139926,38956.0,38955.0,0.075129]
[1645879891672,0.00139926,38956.0,38955.0,0.51946626]
[1645879892077,0.0011,38956.0,38955.0,0.21946626]
[1645879892273,0.0011,38956.0,38955.0,0.075129]
[1645879897364,0.00220773,38963.0,38955.0,0.075129]
[1645879897365,1.00178519,38966.0,38956.0,0.95]
[1645879897552,1.01767,38968.0,38957.0,0.159344]
[1645879897953,0.97276412,38968.0,38957.0,0.159344]
[1645879898154,1.4939967,38969.0,38957.0,0.159344]
[1645879898354,1.4939967,38969.0,38958.0,0.16018418]
[1645879898554,1.4939967,38969.0,38959.0,0.023717]
[1645879899656,1.4939967,38969.0,38959.0,0.323717]
[1645879899860,1.2035,38969.0,38959.0,0.373717]
[1645879900056,1.32681078,38969.0,38959.0,0.475117]
[1645879900257,1.13091078,38969.0,38966.0,0.1621311]
[1645879900458,1.13091078,38969.0,38967.0,0.459298]
[1645879900661,0.001,38969.0,38968.0,0.3]
[1645879900914,0.07992652,38969.0,38968.0,0.023705]
[1645879902518,0.07992652,38969.0,38968.0,0.025705]
[1645879903714,0.07992652,38969.0,38968.0,0.023705]
[1645879903914,0.001,38969.0,38968.0,0.023705]
[1645879904115,0.07992652,38969.0,38968.0,0.023705]
[1645879906756,0.07992652,38969.0,38968.0,0.02377272]
[1645879910007,0.06745659,38969.0,38968.0,0.02377272]
[1645879910411,0.00030027,38970.0,38969.0,0.159288]
[1645879910807,0.07922679,38970.0,38969.0,0.159288]
[1645879911107,0.07281393,38970.0,38969.0,0.159288]
[1645879911308,0.0021,38971.0,38969.0,0.159288]
[1645879911608,0.07720555,38970.0,38969.0,0.159288]
[1645879912249,0.00240027,38971.0,38969.0,0.159288]
[1645879912455,0.0021,38971.0,38969.0,0.161288]
[1645879913752,0.0021,38971.0,38969.0,0.159288]
[1645879915155,0.0021,38971.0,38970.0,0.375102]
[1645879915558,0.0021,38971.0,38970.0,0.075102]
[1645879916507,0.0021,38971.0,38970.0,0.076102]
[1645879917612,0.0021,38971.0,38970.0,0.376102]
[1645879917810,0.0021,38971.0,38970.0,0.375102]
[1645879918010,0.0021,38971.0,38970.0,0.075102]
[1645879918611,0.0021,38971.0,38970.0,0.076102]
[1645879919853,0.0021,38971.0,38970.0,0.075102]
[1645879920455,0.0021,38971.0,38970.0,0.425102]
[1645879920655,0.0021,38971.0,38970.0,0.479192]
[1645879921059,0.0021,38971.0,38968.0,0.459295]
[1645879921254,0.0021,38971.0,38968.0,0.510695]
[1645879921855,0.0021,38971.0,38970.0,0.159287]
[1645879922053,0.0021,38971.0,38970.0,0.510687]
[1645879922255,0.0021,38971.0,38970.0,0.560687]
[1645879922658,0.0021,38971.0,38970.0,0.546687]
[1645879923058,0.0021,38971.0,38970.0,0.246687]
[1645879923308,0.0021,38971.0,38970.0,0.160287]
[1645879923512,0.05529377,38968.0,38966.0,0.00099888]
[1645879925809,0.05529377,38968.0,38963.0,0.00030088]
[1645879926913,0.05529377,38968.0,38958.0,0.1248]
[1645879927157,0.05529377,38968.0,38963.0,0.00029471]
[1645879927559,0.27181165,38968.0,38963.0,0.00029471]
[1645879927757,0.26681165,38968.0,38963.0,0.00029471]
[1645879928162,0.46385725,38967.0,38954.0,0.1878]
[1645879928362,0.21651788,38966.0,38963.0,0.00029471]
[1645879928564,0.26791788,38965.0,38963.0,0.00029471]
[1645879929162,0.21651788,38964.0,38963.0,0.00029471]
[1645879929363,0.0514,38965.0,38958.0,0.002]
[1645879929562,0.26791788,38965.0,38962.0,0.00029471]
[1645879930561,0.26791788,38965.0,38958.0,0.002]
[1645879930818,0.21651788,38964.0,38962.0,0.00028]
[1645879931014,0.21651788,38965.0,38962.0,0.00028]
[1645879931219,0.21651788,38964.0,38962.0,0.00028]
[1645879931616,0.21651788,38964.0,38952.0,0.3]
[1645879931815,0.21651788,38964.0,38961.0,0.00028]
[1645879932617,0.21651788,38963.0,38961.0,0.00028]
[1645879932818,0.21651788,38963.0,38953.0,0.13158369]
[1645879933018,0.21651788,38963.0,38961.0,0.00028001]
[1645879933319,0.21751788,38964.0,38961.0,0.00028001]
[1645879933519,0.001,38964.0,38961.0,0.00028001]
[1645879933822,0.21651788,38966.0,38961.0,0.00028001]
[1645879934019,0.21651788,38965.0,38954.0,0.3]
[1645879934221,0.21651788,38965.0,38961.0,0.000281]
[1645879934420,0.21651788,38966.0,38961.0,0.000281]
[1645879934653,0.21651788,38965.0,38961.0,0.000281]
[1645879935353,0.21651788,38965.0,38952.0,0.3]
[1645879935555,0.21651788,38965.0,38961.0,0.00028099]
[1645879936054,0.21651788,38964.0,38961.0,0.00028099]
[1645879936462,0.21651788,38963.0,38952.0,0.50182508]
[1645879936657,0.21651788,38963.0,38961.0,0.000281]
[1645879936859,0.21651788,38963.0,38962.0,7.04e-05]
[1645879937256,0.27064735,38965.0,38962.0,7.04e-05]
[1645879937858,0.27064735,38964.0,38962.0,0.00036063]
[1645879938911,0.27064735,38964.0,38962.0,7.04e-05]
[1645879939117,0.21667876,38963.0,38962.0,7.04e-05]
[1645879939616,0.21667876,38965.0,38962.0,7.04e-05]
[1645879940211,0.21667876,38965.0,38962.0,0.00036063]
[1645879940612,0.21667876,38965.0,38962.0,0.00136063]
[1645879941213,0.21667876,38965.0,38962.0,0.0010704]
[1645879941616,0.21667876,38964.0,38962.0,0.0010704]
[1645879941814,0.21667876,38964.0,38962.0,7.04e-05]
[1645879942067,0.05029377,38968.0,38961.0,7.258e-05]
[1645879942068,0.26697253,38968.0,38961.0,7.258e-05]
[1645879942266,0.05029377,38968.0,38961.0,7.258e-05]
[1645879942662,0.26697253,38968.0,38965.0,0.13646324]
[1645879942862,0.05029377,38968.0,38965.0,0.13646324]
[1645879944467,0.21667876,38967.0,38961.0,7.258e-05]
[1645879945066,0.21667876,38967.0,38962.0,0.00030038]
[1645879945668,0.21667876,38967.0,38962.0,0.30030038]
[1645879945908,0.05029377,38968.0,38967.0,0.14013244]
[1645879946112,0.26697253,38968.0,38967.0,0.14013244]
[1645879946606,0.26697253,38968.0,38967.0,0.001]
[1645879947106,0.26606853,38968.0,38967.0,0.00107002]
[1645879947307,0.04938977,38968.0,38967.0,0.00107002]
[1645879947507,0.26611005,38968.0,38967.0,0.00040646]
[1645879947908,0.26611005,38968.0,38963.0,0.15970496]
[1645879948108,0.26611005,38968.0,38963.0,0.20970496]
[1645879948109,0.04938977,38968.0,38963.0,0.20970496]
[1645879948608,0.04938977,38968.0,38963.0,0.51040457]
[1645879948807,0.04938977,38968.0,38963.0,0.51070495]
[1645879949007,0.04938977,38968.0,38963.0,0.21070495]
[1645879949656,0.04938977,38968.0,38963.0,0.21040457]
[1645879949855,0.04938977,38968.0,38963.0,0.20969833]
[1645879950860,0.04938977,38968.0,38963.0,0.20940457]
[1645879951057,0.04938977,38968.0,38963.0,0.20969833]
[1645879951261,0.26611005,38968.0,38963.0,0.20969833]
[1645879951459,0.26611005,38968.0,38963.0,0.05029376]
[1645879951657,0.26611005,38968.0,38963.0,0.00029376]
[1645879952062,0.26611005,38968.0,38964.0,6.73e-05]
[1645879953058,0.25782099,38968.0,38964.0,6.73e-05]
[1645879954815,0.21672028,38967.0,38964.0,6.73e-05]
[1645879955814,0.04110071,38968.0,38964.0,6.73e-05]
[1645879957054,0.04110071,38968.0,38967.0,0.1730211]
[1645879957854,0.04110071,38968.0,38964.0,6.73e-05]
[1645879958054,0.02128799,38968.0,38964.0,6.73e-05]
[1645879958253,0.03706921,38974.0,38964.0,6.73e-05]
[1645879958453,0.00027972,38972.0,38964.0,6.73e-05]
[1645879958654,0.00027972,38972.0,38964.0,0.0020673]
[1645879958854,0.00027972,38972.0,38964.0,0.17017371]
[1645879959255,0.0011,38975.0,38964.0,0.17017371]
[1645879959453,0.0011,38975.0,38964.0,0.16817371]
[1645879959655,0.00027973,38972.0,38964.0,0.21817371]
[1645879960154,0.00027973,38972.0,38965.0,0.3]
[1645879960556,0.0011,38975.0,38965.0,0.3]
[1645879960801,0.00027966,38972.0,38965.0,0.3]
[1645879961406,9.66e-06,38972.0,38970.0,0.12794224]
[1645879961609,9.66e-06,38972.0,38971.0,0.3514]
[1645879961806,0.0011,38975.0,38971.0,0.3514]
[1645879961807,0.0011,38975.0,38971.0,0.37707]
[1645879962403,0.0011,38975.0,38971.0,0.37907]
[1645879963104,0.0011,38975.0,38973.0,0.15397945]
[1645879963304,0.0011,38975.0,38974.0,0.3514]
[1645879963503,0.0011,38975.0,38974.0,0.1014]
[1645879963704,0.0011,38975.0,38974.0,0.4014]
[1645879964103,0.0011,38975.0,38974.0,0.37663193]
[1645879964561,0.0011,38979.0,38978.0,1.22712257]
[1645879965859,0.0011,38979.0,38978.0,1.15]
[1645879966359,0.0011,38979.0,38978.0,1.2]
[1645879966958,2.96120132,38986.0,38979.0,1.15]
[1645879967359,2.96120132,38986.0,38978.0,0.05]
[1645879967558,2.96120132,38986.0,38977.0,0.21901633]
[1645879967759,2.9600003,38986.0,38977.0,0.21901633]
[1645879970516,0.00030029,38983.0,38977.0,0.21901633]
[1645879970710,0.00030029,38983.0,38978.0,0.74680203]
[1645879971310,2.9600003,38986.0,38978.0,0.74680203]
[1645879971511,0.00030029,38982.0,38978.0,1.04680203]
[1645879971811,0.00030029,38982.0,38979.0,7.207e-05]
[1645879972462,2.9600003,38986.0,38979.0,0.00207207]
[1645879972863,0.00030029,38982.0,38979.0,0.00207207]
[1645879973067,0.00030029,38982.0,38980.0,0.16542365]
[1645879973663,2.9600003,38986.0,38980.0,0.16542365]
[1645879974063,0.00030029,38983.0,38980.0,0.16542365]
[1645879974464,0.00030029,38983.0,38980.0,0.16742365]
[1645879974664,0.00030029,38983.0,38980.0,0.16697225]
[1645879974964,2.9600003,38986.0,38980.0,0.16697225]
[1645879975164,0.00030029,38983.0,38980.0,0.16697225]
[1645879975810,0.00030029,38983.0,38980.0,0.16497225]
[1645879976208,2.69759595,38986.0,38980.0,0.16497225]
[1645879976408,2.68197518,38986.0,38981.0,1.15]
[1645879977009,2.68197518,38986.0,38981.0,1.15007186]
[1645879977209,2.68197518,38986.0,38981.0,7.186e-05]
[1645879978610,2.63635657,38986.0,38981.0,0.00507186]
[1645879978810,0.00016975,38985.0,38981.0,0.00507186]
[1645879979668,2.63635657,38986.0,38981.0,7.186e-05]
[1645879979968,0.00016975,38985.0,38981.0,7.186e-05]
[1645879980569,0.00016975,38985.0,38981.0,0.00507186]
[1645879980774,0.00016975,38985.0,38981.0,0.30507186]
[1645879980970,2.63635657,38986.0,38982.0,0.12829218]
[1645879981173,0.00030028,38985.0,38982.0,0.12829218]
[1645879981970,0.00030028,38985.0,38984.0,6.788e-05]
[1645879982171,2.63635657,38986.0,38984.0,6.788e-05]
[1645879982571,0.00030028,38985.0,38984.0,6.788e-05]
[1645879983172,2.63620066,38986.0,38984.0,6.788e-05]
[1645879983427,2.63620066,38986.0,38984.0,7.88e-06]
[1645879983630,2.63650094,38986.0,38984.0,7.88e-06]
[1645879984625,2.63620066,38986.0,38984.0,7.88e-06]
[1645879985823,2.63620066,38986.0,38978.0,0.22718843]
[1645879986028,2.63620066,38986.0,38978.0,0.27731943]
[1645879986524,2.63620066,38986.0,38978.0,0.27931943]
[1645879986724,2.63620066,38986.0,38985.0,6.891e-05]
[1645879990566,2.63720066,38986.0,38985.0,6.891e-05]
[1645879991710,2.63620066,38986.0,38985.0,6.891e-05]
[1645879992911,2.9066851,38986.0,38985.0,6.891e-05]
[1645879993414,2.63620066,38986.0,38985.0,6.891e-05]
[1645879993620,2.73620066,38986.0,38985.0,6.891e-05]
[1645879993813,3.89917888,38986.0,38985.0,8.91e-06]
[1645879994014,2.73620066,38986.0,38985.0,8.91e-06]
[1645879994214,3.89644526,38986.0,38985.0,8.91e-06]
[1645879994563,3.94784526,38986.0,38985.0,8.91e-06]
[1645879994963,3.84784526,38986.0,38985.0,8.91e-06]
[1645879995863,3.84284526,38986.0,38985.0,8.91e-06]
[1645879996265,3.94284526,38986.0,38985.0,8.91e-06]
[1645879996863,3.73441416,38986.0,38985.0,8.91e-06]
[1645879997764,3.94319476,38986.0,38985.0,8.91e-06]
[1645879997963,3.73442389,38986.0,38985.0,8.91e-06]
[1645879998616,3.73742389,38986.0,38985.0,8.91e-06]
[1645879999616,4.11508989,38986.0,38985.0,8.91e-06]
[1645880000115,4.11208989,38986.0,38985.0,8.91e-06]
[1645880000315,4.27788542,38986.0,38985.0,8.91e-06]
[1645880000516,4.33725433,38986.0,38985.0,8.91e-06]
[1645880001116,4.77002943,38986.0,38985.0,8.91e-06]
[1645880001322,4.33725433,38986.0,38985.0,8.91e-06]
[1645880001720,4.33625433,38986.0,38985.0,8.91e-06]
[1645880002373,5.41152943,38986.0,38985.0,8.91e-06]
[1645880002572,5.41252943,38986.0,38985.0,8.91e-06]
[1645880003674,1.161966,38979.0,38978.0,0.11522739]
[1645880003977,1.78362285,38979.0,38978.0,0.11516739]
[1645880004374,1.61486842,38979.0,38978.0,0.11516739]
[1645880004577,1.61586842,38979.0,38978.0,0.11516739]
[1645880005074,1.61586842,38979.0,38978.0,0.11486726]
[1645880005915,1.61486842,38979.0,38978.0,0.11486726]
[1645880008816,1.2357,38979.0,38978.0,0.11486726]
[1645880009417,0.4514,38979.0,38978.0,0.11486726]
[1645880009669,0.32494549,38979.0,38978.0,0.11486726]
[1645880009868,0.47916842,38981.0,38978.0,0.11486726]
[1645880009869,0.32494549,38980.0,38978.0,0.11486726]
[1645880010274,0.4,38981.0,38978.0,0.11486726]
[1645880010275,0.62494549,38979.0,38978.0,0.11486726]
[1645880011867,0.62494549,38979.0,38978.0,0.11493374]
[1645880012471,0.47916842,38981.0,38978.0,0.11493374]
[1645880012472,0.32494549,38980.0,38978.0,0.11493374]
[1645880012871,0.001,38979.0,38978.0,0.11493374]
[1645880013712,0.001,38979.0,38978.0,0.11448244]
[1645880013911,0.32494549,38980.0,38978.0,0.11448244]
[1645880014511,0.32594549,38980.0,38978.0,0.11448244]
[1645880015715,0.32494549,38980.0,38978.0,0.11448244]
[1645880015915,0.015,38982.0,38978.0,0.11448244]
[1645880015916,0.27058033,38979.0,38978.0,0.11448244]
[1645880016115,0.015,38982.0,38978.0,0.11448244]
[1645880016514,0.015,38982.0,38978.0,0.11548244]
[1645880016918,0.015,38982.0,38978.0,0.11554892]
[1645880017862,0.015,38982.0,38978.0,0.11454892]
[1645880018461,0.015,38982.0,38978.0,0.11584971]
[1645880019362,0.015,38982.0,38978.0,0.11554892]
[1645880019565,0.015,38982.0,38978.0,0.11584971]
[1645880019763,0.015,38982.0,38978.0,0.11484971]
[1645880020366,0.8993,38982.0,38978.0,0.11484971]
[1645880020561,0.3,38981.0,38978.0,0.11454892]
[1645880020816,1.0843,38981.0,38978.0,0.11484971]
[1645880021017,0.3,38981.0,38978.0,0.11484971]
[1645880021817,0.3,38981.0,38978.0,0.11454892]
[1645880022018,0.3,38981.0,38978.0,0.11484971]
[1645880022417,0.015,38982.0,38978.0,0.11484971]
[1645880022817,0.015,38982.0,38978.0,0.10984971]
[1645880023117,0.7993,38982.0,38978.0,0.10984971]
[1645880023320,1.0843,38981.0,38978.0,0.10984971]
[1645880023817,0.0514,38980.0,38978.0,0.10984971]
[1645880024017,0.3,38979.0,38978.0,0.10984971]
[1645880024217,0.3,38979.0,38978.0,0.10954892]
[1645880025864,0.0514,38980.0,38978.0,0.10954892]